bitfinex/quotes_BTCUSD_20220111
["timestamp","ask_amount","ask_price","bid_price","bid_amount"]
[1641888600100,0.88827901,42292.0,42291.0,0.0006446]
[1641888603351,0.51709701,42292.0,42291.0,0.0006446]
[1641888604456,0.20136163,42292.0,42291.0,0.0006446]
[1641888604651,0.00136163,42292.0,42291.0,0.0006446]
[1641888605849,0.27493258,42292.0,42291.0,0.0006446]
[1641888606296,0.64611458,42292.0,42291.0,0.0006446]
[1641888606699,1.29474622,42292.0,42291.0,0.0006446]
[1641888608398,1.30674622,42292.0,42291.0,0.0006446]
[1641888609000,1.30674622,42292.0,42291.0,0.00089911]
[1641888609602,1.29474622,42292.0,42291.0,0.00089911]
[1641888610448,1.30674622,42292.0,42291.0,0.00089911]
[1641888611652,1.29474622,42292.0,42291.0,0.00089911]
[1641888612449,1.30674622,42292.0,42291.0,0.00089911]
[1641888613550,1.39474622,42292.0,42291.0,0.00089911]
[1641888614205,1.44474622,42292.0,42291.0,9.11e-06]
[1641888614405,2.31241458,42292.0,42291.0,9.11e-06]
[1641888614702,0.118273,42289.0,42275.0,0.00066213]
[1641888614909,0.00126315,42280.0,42277.0,0.0591351]
[1641888615102,0.20126315,42280.0,42277.0,0.0591351]
[1641888615303,0.29151297,42279.0,42277.0,0.0591351]
[1641888615502,0.28009299,42278.0,42277.0,0.0591351]
[1641888616305,0.28009299,42278.0,42277.0,0.0641351]
[1641888616504,0.28809299,42278.0,42277.0,0.0641351]
[1641888617553,0.28009299,42278.0,42275.0,0.05979636]
[1641888617750,0.28009299,42278.0,42275.0,0.05913413]
[1641888618048,0.33922799,42278.0,42276.0,0.05]
[1641888618249,0.28913654,42277.0,42276.0,0.05]
[1641888618650,0.28913654,42277.0,42275.0,0.05066223]
[1641888618852,0.28913654,42277.0,42273.0,0.009479]
[1641888619053,0.571182,42276.0,42274.0,0.00066225]
[1641888619252,1.49571754,42275.0,42274.0,0.00066225]
[1641888619451,1.92604654,42275.0,42274.0,0.00066225]
[1641888619653,2.57019079,42275.0,42274.0,0.00066225]
[1641888619852,2.67019079,42275.0,42274.0,0.00066225]
[1641888620060,2.67019079,42275.0,42261.0,0.2977]
[1641888620061,1.45,42273.0,42261.0,0.504]
[1641888620257,1.14171868,42262.0,42261.0,0.004]
[1641888620452,0.64240478,42262.0,42261.0,0.004]
[1641888620654,0.97262214,42262.0,42261.0,0.004]
[1641888620854,0.00122278,42262.0,42261.0,0.004]
[1641888621302,0.04852278,42262.0,42261.0,0.004]
[1641888621506,0.41970478,42262.0,42261.0,0.004]
[1641888621902,0.85339259,42262.0,42261.0,0.004]
[1641888622302,0.41970478,42262.0,42261.0,0.004]
[1641888622505,0.0583,42262.0,42261.0,0.004]
[1641888623205,0.011,42262.0,42261.0,1.34428988]
[1641888623402,0.011,42262.0,42261.0,1.58364626]
[1641888623603,0.00121618,42267.0,42259.0,0.068628]
[1641888623804,0.00121618,42267.0,42259.0,0.06947634]
[1641888623806,0.00206949,42267.0,42259.0,0.06947634]
[1641888624002,0.00206949,42267.0,42261.0,0.00141606]
[1641888624201,0.00206949,42267.0,42263.0,0.059145]
[1641888624403,0.03406949,42267.0,42263.0,0.059145]
[1641888624807,0.03321618,42267.0,42263.0,0.059145]
[1641888625053,0.03285335,42267.0,42265.0,0.42185706]
[1641888625258,0.03285335,42267.0,42265.0,0.48099906]
[1641888625452,0.03285335,42267.0,42265.0,0.54013706]
[1641888625652,0.00085335,42267.0,42265.0,0.48099906]
[1641888626053,0.00712736,42268.0,42265.0,0.48099906]
[1641888626251,0.0079807,42268.0,42265.0,0.48099906]
[1641888626452,0.017,42267.0,42265.0,0.48099906]
[1641888627054,0.017,42267.0,42266.0,0.30839004]
[1641888627254,0.017,42267.0,42266.0,0.3]
[1641888627652,0.0079807,42268.0,42266.0,0.418262]
[1641888627855,0.0079807,42268.0,42267.0,0.25913331]
[1641888628053,0.0079807,42268.0,42266.0,0.418262]
[1641888628253,0.0079807,42268.0,42266.0,0.118262]
[1641888628454,0.00712736,42268.0,42267.0,0.004]
[1641888629505,0.28896088,42268.0,42267.0,0.004]
[1641888629699,0.28896088,42268.0,42266.0,0.00154593]
[1641888630100,0.37238754,42267.0,42266.0,0.00154593]
[1641888630700,0.00712736,42268.0,42266.0,0.00154593]
[1641888631702,1.77244314,42267.0,42266.0,0.00154593]
[1641888632102,1.07244314,42267.0,42266.0,0.00154593]
[1641888632300,0.57244314,42267.0,42266.0,0.00154593]
[1641888632556,0.79431428,42267.0,42266.0,0.00154593]
[1641888632756,0.47244314,42267.0,42266.0,0.00154593]
[1641888633060,0.00126114,42267.0,42266.0,0.00154593]
[1641888634058,0.06000133,42269.0,42266.0,0.00154593]
[1641888634059,0.00085333,42269.0,42266.0,0.00154593]
[1641888634263,1.21335938,42277.0,42266.0,0.00154593]
[1641888634458,0.27297897,42276.0,42266.0,0.00454593]
[1641888634857,0.3082531,42274.0,42267.0,0.2596328]
[1641888635057,0.3082531,42274.0,42266.0,0.00454593]
[1641888635259,0.54834505,42273.0,42266.0,0.00454593]
[1641888635458,0.2,42272.0,42266.0,0.00454593]
[1641888635660,0.2,42272.0,42264.0,0.0473]
[1641888635661,0.1,42267.0,42264.0,0.0473]
[1641888635861,0.1,42267.0,42256.0,0.00171046]
[1641888635862,0.2,42264.0,42256.0,0.00171046]
[1641888636060,0.32028723,42263.0,42256.0,0.00171046]
[1641888636301,0.00122537,42265.0,42256.0,0.00171046]
[1641888636601,0.016,42264.0,42256.0,0.00171046]
[1641888636800,0.016,42264.0,42258.0,0.4321988]
[1641888637003,0.059151,42263.0,42258.0,0.43305228]
[1641888637202,0.30889164,42262.0,42258.0,0.43305228]
[1641888638004,0.30889164,42262.0,42258.0,0.4321988]
[1641888638406,0.32789164,42262.0,42258.0,0.43305228]
[1641888639004,0.38704564,42262.0,42258.0,0.43305228]
[1641888639205,0.27087624,42261.0,42255.0,0.05915411]
[1641888639406,0.27087624,42261.0,42255.0,0.059152]
[1641888639605,0.27087624,42261.0,42258.0,0.00085348]
[1641888639804,0.38704564,42262.0,42258.0,0.00085348]
[1641888639805,0.059154,42262.0,42258.0,0.00085348]
[1641888640257,0.00084979,42271.0,42258.0,0.00085348]
[1641888640460,0.60356518,42273.0,42260.0,0.05914262]
[1641888640461,0.014,42262.0,42260.0,0.05914262]
[1641888640656,0.10531855,42262.0,42261.0,0.6473]
[1641888640860,0.10531855,42262.0,42261.0,0.4151798]
[1641888641056,0.10531855,42262.0,42261.0,0.4651798]
[1641888641256,0.10531855,42262.0,42261.0,0.4151798]
[1641888641859,0.00084984,42271.0,42265.0,0.059141]
[1641888642061,0.00084984,42271.0,42267.0,0.0591409]
[1641888642259,0.00084984,42271.0,42268.0,0.0473]
[1641888642460,0.00084984,42271.0,42268.0,0.0973]
[1641888642860,0.0012245,42274.0,42268.0,0.0973]
[1641888643061,0.00085007,42272.0,42268.0,0.0973]
[1641888643264,0.26597149,42271.0,42268.0,0.0973]
[1641888643467,0.32511149,42271.0,42268.0,0.0973]
[1641888643701,0.32511149,42271.0,42268.0,0.0473]
[1641888643902,0.42511149,42271.0,42268.0,0.0473]
[1641888644102,0.15914,42271.0,42268.0,0.43207042]
[1641888644502,0.05914,42271.0,42268.0,0.0473]
[1641888645112,0.05914,42271.0,42268.0,0.0973]
[1641888645604,0.05914,42271.0,42268.0,0.0473]
[1641888646805,0.57813718,42272.0,42268.0,0.0473]
[1641888647004,0.57024356,42272.0,42268.0,0.04737514]
[1641888647205,0.67058033,42272.0,42268.0,0.04737514]
[1641888647653,0.40241707,42272.0,42268.0,0.04737514]
[1641888647853,0.40326715,42272.0,42268.0,0.04737514]
[1641888648054,0.05914,42271.0,42268.0,0.04737514]
[1641888648557,0.33035675,42271.0,42268.0,0.04737514]
[1641888648755,0.33035675,42271.0,42268.0,7.514e-05]
[1641888649057,0.05914,42271.0,42268.0,7.514e-05]
[1641888649256,0.05914,42271.0,42268.0,0.05007514]
[1641888649857,0.05914,42271.0,42269.0,0.0473]
[1641888650956,0.05914,42271.0,42269.0,0.042546]
[1641888652004,0.0930356,42270.0,42269.0,0.042546]
[1641888652403,0.00085008,42272.0,42269.0,0.042546]
[1641888652605,0.00085007,42272.0,42270.0,0.05913673]
[1641888652803,0.00085007,42272.0,42271.0,0.0473]
[1641888653204,0.05207457,42274.0,42271.0,0.0473]
[1641888653404,0.059137,42274.0,42271.0,0.0473]
[1641888655753,0.371182,42273.0,42271.0,0.0473]
[1641888655954,0.37240076,42273.0,42271.0,0.0473]
[1641888656154,0.37240076,42273.0,42268.0,7.514e-05]
[1641888656357,0.059145,42271.0,42268.0,0.00092853]
[1641888656757,0.00121876,42273.0,42268.0,0.00092853]
[1641888656956,2.01231882,42272.0,42266.0,0.4778206]
[1641888657259,2.01231882,42272.0,42270.0,0.00719764]
[1641888657456,2.01231882,42272.0,42266.0,0.12929193]
[1641888657755,2.01231882,42272.0,42270.0,0.06645553]
[1641888657955,1.00615941,42273.0,42270.0,0.00584264]
[1641888658157,1.00615941,42273.0,42272.0,0.00604379]
[1641888658357,1.00615941,42273.0,42272.0,0.0473]
[1641888658557,1.25720741,42278.0,42272.0,0.0473]
[1641888658802,0.5,42275.0,42274.0,0.05912]
[1641888659008,0.5,42275.0,42274.0,0.10642]
[1641888659202,0.5,42275.0,42274.0,0.57449166]
[1641888660303,0.5,42275.0,42274.0,0.156421]
[1641888660505,0.5,42275.0,42274.0,0.1063]
[1641888661705,0.5,42275.0,42274.0,0.17816103]
[1641888662555,0.522,42275.0,42274.0,0.18716103]
[1641888662758,0.522,42275.0,42274.0,1.28716103]
[1641888662956,0.522,42275.0,42274.0,1.60884469]
[1641888663154,0.522,42275.0,42274.0,1.70884469]
[1641888663155,0.20644033,42275.0,42274.0,1.70884469]
[1641888663555,0.20644033,42275.0,42274.0,0.65884469]
[1641888663954,0.20644033,42275.0,42274.0,0.66003172]
[1641888664157,0.00085015,42277.0,42275.0,1.17624786]
[1641888664354,0.00085015,42277.0,42276.0,1.356412]
[1641888664556,0.2243,42282.0,42277.0,0.118225]
[1641888664758,0.2243,42282.0,42278.0,0.0473]
[1641888664956,0.1,42281.0,42278.0,0.0473]
[1641888665856,0.41039636,42281.0,42278.0,0.0473]
[1641888666058,0.41039636,42281.0,42278.0,0.156413]
[1641888666301,0.41039636,42281.0,42278.0,0.0973]
[1641888666502,0.105,42281.0,42278.0,0.1323]
[1641888666706,0.105,42281.0,42278.0,0.0823]
[1641888666902,0.105,42281.0,42278.0,0.1323]
[1641888667304,0.35926211,42281.0,42278.0,0.0823]
[1641888667507,0.35926211,42281.0,42278.0,0.035]
[1641888667706,0.00712528,42280.0,42278.0,0.035]
[1641888667903,0.00712528,42280.0,42274.0,0.00118703]
[1641888668103,0.1,42275.0,42274.0,0.00118703]
[1641888668803,0.1,42275.0,42274.0,0.06031503]
[1641888669005,0.12212528,42280.0,42274.0,0.059128]
[1641888669404,0.12212528,42280.0,42274.0,0.106428]
[1641888669603,0.00085018,42279.0,42276.0,0.05321115]
[1641888669807,0.00085018,42279.0,42276.0,0.11233715]
[1641888670260,0.1,42277.0,42276.0,0.11233715]
[1641888671057,0.1,42277.0,42276.0,0.53362778]
[1641888671258,0.01885017,42279.0,42276.0,0.53362778]
[1641888671659,0.01885017,42279.0,42276.0,0.58362778]
[1641888671863,0.10712528,42280.0,42278.0,0.059117]
[1641888671864,0.10797546,42280.0,42278.0,0.059117]
[1641888672161,0.00797546,42280.0,42278.0,0.05904929]
[1641888672359,0.0931408,42279.0,42278.0,0.05904929]
[1641888672664,0.01185018,42280.0,42278.0,0.07551656]
[1641888672858,0.011,42280.0,42279.0,0.4654213]
[1641888673060,0.011,42280.0,42279.0,0.459111]
[1641888673460,0.011,42280.0,42279.0,0.059111]
[1641888673706,0.111,42280.0,42279.0,0.059111]
[1641888673906,0.1,42280.0,42279.0,0.059111]
[1641888674308,0.0008502,42282.0,42279.0,0.059111]
[1641888674511,0.0008502,42282.0,42280.0,0.059115]
[1641888674708,0.1,42283.0,42281.0,0.059115]
[1641888675209,0.1,42283.0,42281.0,0.14187444]
[1641888675610,0.1,42283.0,42282.0,0.05]
[1641888676612,0.1,42283.0,42282.0,0.069]
[1641888677015,0.19740495,42283.0,42282.0,0.069]
[1641888677859,0.1,42283.0,42282.0,0.05]
[1641888678058,0.19269834,42283.0,42282.0,0.05]
[1641888678259,0.09269834,42283.0,42282.0,0.05]
[1641888678560,0.19269834,42283.0,42282.0,0.091]
[1641888678759,0.09269834,42283.0,42282.0,0.091]
[1641888678960,0.19269834,42283.0,42282.0,0.09220765]
[1641888679158,0.1,42283.0,42282.0,0.09220765]
[1641888679361,0.19580374,42283.0,42282.0,0.09220765]
[1641888679565,0.1,42283.0,42282.0,0.09220765]
[1641888679761,0.1,42283.0,42282.0,0.05120765]
[1641888679961,0.1,42283.0,42282.0,0.10029953]
[1641888680561,0.1,42283.0,42282.0,0.13829953]
[1641888681216,0.00084177,42285.0,42283.0,0.10049185]
[1641888681412,0.1,42286.0,42283.0,0.059112]
[1641888681612,0.00084177,42285.0,42283.0,0.059112]
[1641888682012,0.00084177,42285.0,42284.0,0.04909188]
[1641888682513,0.1,42286.0,42284.0,0.0984711]
[1641888682713,0.011,42285.0,42284.0,0.78580485]
[1641888682912,0.011,42285.0,42284.0,0.84491885]
[1641888683112,0.011,42285.0,42284.0,0.89491885]
[1641888683312,0.011,42285.0,42284.0,0.79442563]
[1641888683912,0.1,42286.0,42284.0,0.78642563]
[1641888684112,0.1,42286.0,42285.0,0.00130046]
[1641888684514,0.143,42286.0,42285.0,0.00130046]
[1641888685756,0.1,42286.0,42285.0,0.00130046]
[1641888686557,0.131,42286.0,42285.0,0.00130046]
[1641888687759,0.1,42286.0,42285.0,0.00130046]
[1641888687960,0.38055613,42286.0,42285.0,0.00130046]
[1641888688564,0.41255613,42286.0,42285.0,0.00130046]
[1641888688810,0.132,42286.0,42285.0,0.00130046]
[1641888689008,0.132,42286.0,42285.0,0.00151722]
[1641888689810,0.1,42286.0,42285.0,0.00151722]
[1641888690215,0.0008418,42288.0,42285.0,0.04881722]
[1641888690413,0.60357935,42298.0,42286.0,0.6666127]
[1641888690614,0.60357935,42298.0,42287.0,0.35962119]
[1641888690813,0.3051,42299.0,42287.0,0.40962119]
[1641888691016,0.3051,42299.0,42293.0,0.059095]
[1641888691017,0.24946767,42297.0,42293.0,0.059095]
[1641888691214,0.24946767,42297.0,42293.0,0.44052782]
[1641888691415,0.24946767,42297.0,42295.0,0.059095]
[1641888691715,0.24946767,42297.0,42295.0,0.109095]
[1641888692212,0.0622,42300.0,42295.0,0.156395]
[1641888692470,0.00042372,42298.0,42297.0,1.309094]
[1641888692667,0.00042372,42298.0,42297.0,0.20768069]
[1641888692863,0.00042372,42298.0,42297.0,0.15768069]
[1641888693263,0.0622,42300.0,42297.0,0.79983852]
[1641888693464,0.00042372,42300.0,42298.0,0.059085]
[1641888693665,0.00042372,42300.0,42299.0,0.0473]
[1641888694463,0.26728566,42310.0,42299.0,0.09649056]
[1641888694663,0.0008336,42302.0,42299.0,0.15849056]
[1641888694863,0.0008336,42302.0,42301.0,0.118184]
[1641888695064,0.0008336,42302.0,42301.0,0.156392]
[1641888695266,0.0008336,42302.0,42301.0,0.0473]
[1641888695867,0.00083362,42304.0,42300.0,0.6865237]
[1641888696065,0.00120292,42301.0,42300.0,0.6865237]
[1641888696314,1.60795946,42301.0,42300.0,0.6865237]
[1641888696513,1.60795946,42301.0,42297.0,0.00165916]
[1641888696514,0.28903347,42300.0,42297.0,0.00165916]
[1641888696716,0.60814183,42299.0,42297.0,0.00165916]
[1641888697015,0.99372306,42299.0,42297.0,0.00165916]
[1641888697313,1.09372306,42299.0,42297.0,0.00165916]
[1641888697918,0.85676323,42299.0,42297.0,0.00165916]
[1641888698114,1.12849659,42298.0,42297.0,0.00165916]
[1641888698515,1.22849659,42298.0,42297.0,0.00165916]
[1641888698715,1.12849659,42298.0,42297.0,0.00165916]
[1641888699961,0.1,42298.0,42297.0,0.00165916]
[1641888700157,0.48558123,42299.0,42297.0,0.00165916]
[1641888700356,0.971182,42298.0,42297.0,0.00165916]
[1641888700560,1.071182,42298.0,42297.0,0.00165916]
[1641888701057,0.471182,42298.0,42297.0,0.00165916]
[1641888702259,1.021182,42298.0,42297.0,0.00165916]
[1641888702461,1.22103622,42298.0,42297.0,0.00165916]
[1641888703064,0.79074222,42298.0,42297.0,0.00165916]
[1641888703362,0.00083358,42300.0,42297.0,0.00165916]
[1641888703561,0.00083358,42300.0,42297.0,0.06075716]
[1641888703816,0.00083358,42300.0,42297.0,0.00165916]
[1641888704212,0.60357935,42303.0,42297.0,0.00165916]
[1641888704413,0.30858637,42301.0,42297.0,0.00165916]
[1641888704615,0.2645481,42298.0,42297.0,0.00165916]
[1641888705017,0.30858637,42301.0,42297.0,0.00165916]
[1641888705415,0.30775278,42301.0,42297.0,0.00165916]
[1641888705619,0.30858637,42301.0,42297.0,0.00165916]
[1641888705817,0.57217241,42301.0,42297.0,0.00165916]
[1641888706720,0.33409337,42299.0,42297.0,0.00165916]
[1641888707120,0.43409337,42299.0,42297.0,0.00165916]
[1641888708268,0.00083358,42300.0,42297.0,0.00165916]
[1641888708965,0.25798913,42302.0,42297.0,0.06076316]
[1641888709166,0.25798913,42302.0,42297.0,0.00165916]
[1641888709167,0.267051,42299.0,42297.0,0.00165916]
[1641888709367,0.45,42298.0,42297.0,0.00165916]
[1641888709567,0.371182,42297.0,42294.0,0.51998286]
[1641888709769,0.09748343,42296.0,42294.0,0.51998286]
[1641888709967,0.09112215,42294.0,42293.0,0.51998286]
[1641888710167,0.63857332,42294.0,42293.0,0.51998286]
[1641888710566,0.63857332,42294.0,42287.0,0.78282559]
[1641888710772,0.26247006,42293.0,42284.0,0.059118]
[1641888710969,0.26247006,42293.0,42289.0,0.059116]
[1641888711409,0.63857332,42294.0,42289.0,0.059116]
[1641888711609,0.00083351,42293.0,42289.0,0.059116]
[1641888712209,0.29452035,42294.0,42289.0,0.059116]
[1641888712911,0.05911354,42297.0,42289.0,0.059116]
[1641888713110,0.35630691,42294.0,42289.0,0.059116]
[1641888713314,0.25609699,42293.0,42289.0,0.059116]
[1641888715458,0.00082526,42295.0,42289.0,0.059116]
[1641888716058,0.2825388,42297.0,42289.0,0.059116]
[1641888716258,0.43295784,42296.0,42289.0,0.059116]
[1641888716559,0.00082529,42295.0,42289.0,0.118226]
[1641888716861,0.00082529,42295.0,42291.0,0.059111]
[1641888717060,0.00082529,42295.0,42289.0,0.05911]
[1641888717262,0.27341215,42293.0,42289.0,0.05911]
[1641888717461,0.26678533,42292.0,42289.0,0.05911]
[1641888717860,0.26678533,42292.0,42290.0,0.059111]
[1641888718064,0.29896649,42292.0,42288.0,0.00085319]
[1641888718264,0.04852096,42291.0,42288.0,0.00085319]
[1641888718466,1.53409813,42289.0,42288.0,0.00085319]
[1641888718713,1.53409813,42289.0,42283.0,0.68849961]
[1641888718714,0.00129714,42284.0,42283.0,0.68849961]
[1641888718916,1.32891143,42284.0,42283.0,0.68849961]
[1641888719116,1.806416,42284.0,42280.0,0.00341335]
[1641888719314,0.30143709,42281.0,42280.0,0.00341335]
[1641888719515,1.37610171,42284.0,42280.0,0.00341335]
[1641888719713,0.371182,42283.0,42272.0,0.009477]
[1641888719913,0.05913292,42281.0,42278.0,0.00085328]
[1641888720315,0.10176358,42279.0,42278.0,0.00085328]
[1641888720513,0.85163315,42279.0,42278.0,0.00085328]
[1641888720913,0.30163315,42279.0,42272.0,0.009477]
[1641888721119,0.00127446,42280.0,42276.0,0.0008533]
[1641888721315,0.29669584,42277.0,42276.0,0.0008533]
[1641888721514,0.00127446,42280.0,42276.0,0.0008533]
[1641888722114,0.00127446,42280.0,42272.0,0.009477]
[1641888722314,0.00127446,42280.0,42276.0,0.0008533]
[1641888722763,0.01927446,42280.0,42276.0,0.0008533]
[1641888723464,0.01927446,42280.0,42273.0,0.69052971]
[1641888723767,0.33950175,42280.0,42276.0,0.0008533]
[1641888723965,0.32150175,42280.0,42276.0,0.0008533]
[1641888724564,0.32150175,42280.0,42274.0,0.69052971]
[1641888724766,0.25547877,42279.0,42276.0,0.0008533]
[1641888724965,0.25547877,42279.0,42277.0,0.059128]
[1641888725768,0.01927446,42280.0,42277.0,0.059128]
[1641888725969,0.31040492,42283.0,42276.0,0.0008533]
[1641888726217,0.00120492,42283.0,42278.0,0.73989916]
[1641888726817,0.29874156,42283.0,42278.0,0.73989916]
[1641888727018,0.29874156,42283.0,42279.0,0.74965571]
[1641888727218,0.01720492,42283.0,42279.0,1.15946345]
[1641888727423,0.016,42283.0,42280.0,0.059123]
[1641888727618,0.016,42283.0,42281.0,0.31975526]
[1641888727819,0.016,42283.0,42281.0,1.01028497]
[1641888728021,0.2934,42288.0,42285.0,0.059113]
[1641888728219,0.27632261,42291.0,42286.0,0.059114]
[1641888728419,0.57045818,42291.0,42286.0,0.059114]
[1641888728721,0.58945818,42291.0,42287.0,0.059117]
[1641888729021,0.58945818,42291.0,42283.0,0.118227]
[1641888729221,0.58945818,42291.0,42287.0,0.79817048]
[1641888729620,0.58945818,42291.0,42287.0,0.73905548]
[1641888729968,0.019,42291.0,42288.0,0.059115]
[1641888730365,0.019,42291.0,42288.0,0.118228]
[1641888730765,0.066,42291.0,42288.0,0.118228]
[1641888730966,0.047,42291.0,42288.0,0.118228]
[1641888731370,0.047,42291.0,42289.0,0.059108]
[1641888731966,0.00082523,42295.0,42289.0,0.059108]
[1641888732168,0.30272314,42295.0,42291.0,0.059109]
[1641888732368,0.30272314,42295.0,42292.0,0.059108]
[1641888732768,0.31772314,42295.0,42292.0,0.059108]
[1641888732979,0.31689791,42295.0,42292.0,0.059108]
[1641888733269,0.10118668,42294.0,42292.0,0.059111]
[1641888733714,0.10118668,42294.0,42290.0,0.68968603]
[1641888734812,0.09735152,42293.0,42290.0,0.68968603]
[1641888735014,0.09735152,42293.0,42289.0,0.68968603]
[1641888735215,0.028,42294.0,42291.0,0.059112]
[1641888735513,0.028,42294.0,42291.0,0.11822]
[1641888735914,0.30272317,42295.0,42291.0,0.11822]
[1641888736113,0.30272317,42295.0,42292.0,0.059109]
[1641888736514,0.30272317,42295.0,42290.0,0.80790303]
[1641888736515,0.09529748,42294.0,42290.0,0.74879903]
[1641888736720,0.09189049,42294.0,42290.0,0.74879903]
[1641888736914,0.09189049,42294.0,42290.0,0.68968603]
[1641888737968,0.66675064,42292.0,42290.0,0.68968603]
[1641888738268,0.66675064,42292.0,42289.0,0.68968603]
[1641888738269,2.17357436,42291.0,42289.0,0.68968603]
[1641888738465,1.41959033,42290.0,42289.0,0.68968603]
[1641888738665,0.74989933,42290.0,42289.0,0.68968603]
[1641888738866,0.530309,42290.0,42288.0,0.00085319]
[1641888739063,0.64518494,42289.0,42283.0,0.68968603]
[1641888739265,0.27400294,42289.0,42283.0,0.68953921]
[1641888739566,0.3253656,42288.0,42283.0,0.68953921]
[1641888739765,0.3253656,42288.0,42282.0,0.68953921]
[1641888739962,0.4844916,42288.0,42282.0,0.68953921]
[1641888740567,0.46203767,42284.0,42282.0,0.68953921]
[1641888740765,0.46203767,42284.0,42282.0,0.69453921]
[1641888740965,0.2,42283.0,42282.0,0.005]
[1641888741220,0.571182,42283.0,42282.0,0.005]
[1641888741420,0.371182,42283.0,42282.0,0.005]
[1641888741621,0.471182,42283.0,42282.0,0.005]
[1641888741923,0.471182,42283.0,42274.0,0.78282559]
[1641888742123,0.26581494,42278.0,42272.0,0.118266]
[1641888742322,0.26581494,42278.0,42274.0,0.059137]
[1641888742520,0.26581494,42278.0,42275.0,0.06887163]
[1641888742720,0.27781494,42278.0,42275.0,0.06887163]
[1641888743126,0.33695428,42278.0,42275.0,0.06887163]
[1641888743523,0.059142,42277.0,42275.0,0.06887163]
[1641888743722,0.059142,42277.0,42273.0,0.06887163]
[1641888743924,0.37781494,42278.0,42274.0,0.00085332]
[1641888744125,0.43695343,42278.0,42274.0,0.00085332]
[1641888744324,0.37781494,42278.0,42274.0,0.00085332]
[1641888744528,0.27781494,42278.0,42274.0,0.00085332]
[1641888744725,0.37881494,42278.0,42274.0,0.00085332]
[1641888744971,0.37881494,42278.0,42269.0,0.84196259]
[1641888745165,0.37881494,42278.0,42275.0,0.06887163]
[1641888745763,0.27881494,42278.0,42275.0,0.06887163]
[1641888745963,0.37881494,42278.0,42275.0,0.06887163]
[1641888746165,0.25319838,42279.0,42275.0,0.06887163]
[1641888746865,0.28519838,42279.0,42275.0,0.06887163]
[1641888747070,0.34330012,42276.0,42274.0,0.06972495]
[1641888747264,0.34330012,42276.0,42274.0,0.06887163]
[1641888747666,0.34330012,42276.0,42273.0,0.00085333]
[1641888748265,0.09443178,42275.0,42273.0,0.00085333]
[1641888748465,0.09443178,42275.0,42271.0,0.78282559]
[1641888748716,0.09443178,42275.0,42272.0,0.00085334]
[1641888748918,0.09822972,42274.0,42273.0,0.005]
[1641888750019,0.09822972,42274.0,42271.0,0.00085335]
[1641888750216,0.3453187,42274.0,42271.0,0.00085335]
[1641888750417,0.09241703,42273.0,42271.0,0.05998635]
[1641888750618,0.26503763,42280.0,42271.0,0.05998635]
[1641888750820,0.00128103,42279.0,42271.0,0.00085335]
[1641888751018,0.2915,42282.0,42270.0,0.83282559]
[1641888751317,0.26507255,42281.0,42275.0,0.059128]
[1641888751517,0.3033688,42279.0,42273.0,0.00085333]
[1641888751720,0.3033688,42279.0,42274.0,0.78282559]
[1641888752120,0.3033688,42279.0,42274.0,0.83282559]
[1641888752321,0.3033688,42279.0,42274.0,0.05085332]
[1641888752568,0.3033688,42279.0,42275.0,0.059131]
[1641888752873,0.017,42279.0,42275.0,0.059131]
[1641888753071,0.017,42279.0,42275.0,0.177377]
[1641888753267,0.017,42279.0,42276.0,0.05]
[1641888753468,0.017,42279.0,42277.0,0.059123]
[1641888754168,0.00125234,42284.0,42277.0,0.23766589]
[1641888754369,0.00125234,42284.0,42277.0,0.00117989]
[1641888754568,0.00125234,42284.0,42278.0,0.118242]
[1641888754770,0.06925234,42284.0,42278.0,0.11909528]
[1641888755072,0.07637624,42284.0,42278.0,0.00085328]
[1641888755469,0.07637624,42284.0,42279.0,0.05]
[1641888755671,0.28001359,42280.0,42278.0,0.00085328]
[1641888755871,0.28001359,42280.0,42277.0,0.00117989]
[1641888756070,0.53949283,42280.0,42279.0,0.00085326]
[1641888756920,0.016,42280.0,42277.0,0.00117989]
[1641888757123,0.016,42280.0,42279.0,0.659123]
[1641888757324,0.016,42280.0,42279.0,0.706423]
[1641888757325,0.01302526,42280.0,42279.0,0.706423]
[1641888757626,0.01302526,42280.0,42279.0,0.156423]
[1641888758020,0.25426848,42290.0,42279.0,0.62804543]
[1641888758021,0.3237203,42287.0,42279.0,0.62804543]
[1641888758220,0.3237203,42287.0,42279.0,0.67742594]
[1641888758421,0.25426848,42290.0,42283.0,0.10049141]
[1641888758624,0.25426848,42290.0,42284.0,0.0473]
[1641888759022,0.43626474,42292.0,42285.0,0.059113]
[1641888759023,0.00083339,42292.0,42285.0,0.059113]
[1641888759222,0.00083339,42292.0,42285.0,0.106413]
[1641888759423,0.30975263,42292.0,42285.0,0.106413]
[1641888759622,0.31058628,42292.0,42288.0,0.69134928]
[1641888760068,0.57640503,42292.0,42288.0,0.69134928]
[1641888760666,0.36970773,42292.0,42288.0,0.69134928]
[1641888760869,0.36970773,42292.0,42289.0,0.69134928]
[1641888760870,0.37054143,42292.0,42289.0,0.69134928]
[1641888761769,0.36970773,42292.0,42289.0,0.69134928]
[1641888762271,0.36970773,42292.0,42290.0,0.69134928]
[1641888762468,0.10388898,42292.0,42290.0,0.69134928]
[1641888762870,0.10388898,42292.0,42290.0,0.69634928]
[1641888763068,0.32809758,42295.0,42290.0,0.69634928]
[1641888763269,0.00083371,42293.0,42291.0,0.69134928]
[1641888763927,0.00083371,42293.0,42291.0,0.69267698]
[1641888764126,0.42809758,42295.0,42291.0,0.74205749]
[1641888764427,0.00083372,42294.0,42292.0,0.04137431]
[1641888764726,0.00083372,42294.0,42291.0,0.0013277]
[1641888765132,0.00083372,42294.0,42291.0,0.0043277]
[1641888765329,0.8741603,42297.0,42291.0,0.0043277]
[1641888765330,0.27066131,42293.0,42291.0,0.0043277]
[1641888765727,0.00083372,42295.0,42291.0,0.0043277]
[1641888766127,0.00083372,42295.0,42291.0,0.0013277]
[1641888766528,0.8741603,42297.0,42291.0,0.0013277]
[1641888766728,0.27102835,42292.0,42291.0,0.0013277]
[1641888766929,0.27102835,42292.0,42291.0,0.0043277]
[1641888767472,0.00083373,42295.0,42291.0,0.0043277]
[1641888767766,0.32271031,42297.0,42291.0,0.0043277]
[1641888767967,0.00083373,42295.0,42291.0,0.0043277]
[1641888768170,0.00083373,42295.0,42291.0,0.0013277]
[1641888768966,0.26625077,42296.0,42293.0,0.00088355]
[1641888769267,0.26595745,42294.0,42293.0,0.00088355]
[1641888770670,0.83713945,42294.0,42293.0,0.00088355]
[1641888770868,0.83713945,42294.0,42293.0,0.00388355]